[Event "Late-Titled-Tuesday-Blitz-May-07-2024"]
[Site "Chess.com"]
[Date "2024.05.07"]
[Round "7"]
[White "Alex_Sahakyan2006"]
[Black "secretworker2027"]
[Result "1/2-1/2"]
[WhiteElo "2843"]
[BlackElo "2665"]
[TimeControl "180+1"]
[EndTime "15:18:10 PDT"]
[Termination "Game drawn - insufficient material"]

1. d4 {[%clk 0:03:00.9]} 1... Nf6 {[%clk 0:02:58.7]} 2. c4 {[%clk 0:02:59.7]}
2... e6 {[%clk 0:02:58.6]} 3. Nf3 {[%clk 0:02:59.3]} 3... Bb4+ {[%clk
0:02:58.1]} 4. Nc3 {[%clk 0:02:58.5]} 4... O-O {[%clk 0:02:54]} 5. Bd2 {[%clk
0:02:57.9]} 5... d6 {[%clk 0:02:54.1]} 6. Qc2 {[%clk 0:02:55.4]} 6... Nbd7
{[%clk 0:02:53.8]} 7. a3 {[%clk 0:02:54.3]} 7... Bxc3 {[%clk 0:02:52.6]} 8. Bxc3
{[%clk 0:02:55.2]} 8... Qe7 {[%clk 0:02:52.9]} 9. e3 {[%clk 0:02:51.9]} 9... e5
{[%clk 0:02:52.8]} 10. Be2 {[%clk 0:02:51.8]} 10... Re8 {[%clk 0:02:52]} 11. O-O
{[%clk 0:02:52.2]} 11... b6 {[%clk 0:02:52.1]} 12. Rfe1 {[%clk 0:02:47.1]} 12...
Bb7 {[%clk 0:02:51.9]} 13. Rad1 {[%clk 0:02:44.3]} 13... Be4 {[%clk 0:02:51]}
14. Qa4 {[%clk 0:02:36.6]} 14... a5 {[%clk 0:02:48.2]} 15. Rc1 {[%clk
0:01:33.9]} 15... h6 {[%clk 0:02:43.3]} 16. Qd1 {[%clk 0:01:33.6]} 16... Rad8
{[%clk 0:02:40.9]} 17. b4 {[%clk 0:01:33.3]} 17... axb4 {[%clk 0:02:40.6]} 18.
axb4 {[%clk 0:01:34.2]} 18... c5 {[%clk 0:02:30]} 19. bxc5 {[%clk 0:01:30.2]}
19... bxc5 {[%clk 0:02:27.1]} 20. d5 {[%clk 0:01:30.7]} 20... Ra8 {[%clk
0:02:20.8]} 21. Ra1 {[%clk 0:01:30.4]} 21... Nb6 {[%clk 0:02:17.2]} 22. Nd2
{[%clk 0:01:29]} 22... Bg6 {[%clk 0:02:16.7]} 23. Rxa8 {[%clk 0:01:23.4]} 23...
Rxa8 {[%clk 0:02:15.2]} 24. Qb3 {[%clk 0:01:23.8]} 24... Nfd7 {[%clk 0:02:10.8]}
25. Ra1 {[%clk 0:01:21.4]} 25... Rxa1+ {[%clk 0:02:06.4]} 26. Bxa1 {[%clk
0:01:22.3]} 26... Qd8 {[%clk 0:02:06.2]} 27. Bc3 {[%clk 0:01:14.2]} 27... Qa8
{[%clk 0:02:05.4]} 28. f4 {[%clk 0:01:08.9]} 28... exf4 {[%clk 0:02:04]} 29.
exf4 {[%clk 0:01:09.4]} 29... Qa6 {[%clk 0:01:52.1]} 30. Kf2 {[%clk 0:01:03]}
30... f6 {[%clk 0:01:40.6]} 31. h4 {[%clk 0:00:59.1]} 31... Qa4 {[%clk
0:01:35.9]} 32. Qxa4 {[%clk 0:00:56.3]} 32... Nxa4 {[%clk 0:01:35.9]} 33. Ba5
{[%clk 0:00:57.2]} 33... Nab6 {[%clk 0:01:30.6]} 34. Bg4 {[%clk 0:00:54.7]}
34... Kf8 {[%clk 0:01:25.1]} 35. Be6 {[%clk 0:00:38.4]} 35... Ke7 {[%clk
0:01:24.5]} 36. Ke3 {[%clk 0:00:36.8]} 36... Bf7 {[%clk 0:01:21.5]} 37. Bf5
{[%clk 0:00:15.7]} 37... Na4 {[%clk 0:01:10.1]} 38. Bc7 {[%clk 0:00:15.8]} 38...
Nb2 {[%clk 0:01:03.8]} 39. g4 {[%clk 0:00:06.3]} 39... Be8 {[%clk 0:00:50.3]}
40. h5 {[%clk 0:00:05.3]} 40... Nf8 {[%clk 0:00:49]} 41. Ba5 {[%clk 0:00:03.7]}
41... Bd7 {[%clk 0:00:46.5]} 42. Bc3 {[%clk 0:00:03.4]} 42... Na4 {[%clk
0:00:45.4]} 43. Ba5 {[%clk 0:00:03.9]} 43... Bxf5 {[%clk 0:00:43.5]} 44. gxf5
{[%clk 0:00:04.3]} 44... Nd7 {[%clk 0:00:42.7]} 45. Ne4 {[%clk 0:00:04.5]} 45...
Nb2 {[%clk 0:00:42.1]} 46. Nd2 {[%clk 0:00:04.8]} 46... Na4 {[%clk 0:00:39.9]}
47. Bc7 {[%clk 0:00:04.8]} 47... Nb2 {[%clk 0:00:38.8]} 48. Ba5 {[%clk
0:00:03.8]} 48... Nf8 {[%clk 0:00:39]} 49. Ke2 {[%clk 0:00:03]} 49... Nd7 {[%clk
0:00:38.9]} 50. Bc3 {[%clk 0:00:03]} 50... Na4 {[%clk 0:00:38.6]} 51. Ba5 {[%clk
0:00:03]} 51... Nb2 {[%clk 0:00:38.6]} 52. Ke1 {[%clk 0:00:02.9]} 52... Nd3+
{[%clk 0:00:37.8]} 53. Kd1 {[%clk 0:00:02]} 53... Nxf4 {[%clk 0:00:38.7]} 54.
Bc7 {[%clk 0:00:02.3]} 54... Nxh5 {[%clk 0:00:38.7]} 55. Ne4 {[%clk 0:00:02.8]}
55... Ne5 {[%clk 0:00:37]} 56. Bxd6+ {[%clk 0:00:03.2]} 56... Kf7 {[%clk
0:00:36.9]} 57. Bxe5 {[%clk 0:00:03.6]} 57... fxe5 {[%clk 0:00:36.9]} 58. Nxc5
{[%clk 0:00:04.3]} 58... Ng3 {[%clk 0:00:37.2]} 59. Nd7 {[%clk 0:00:02.5]} 59...
Nxf5 {[%clk 0:00:32.1]} 60. Ke2 {[%clk 0:00:03]} 60... e4 {[%clk 0:00:30]} 61.
c5 {[%clk 0:00:03.1]} 61... Ke7 {[%clk 0:00:29.4]} 62. Ne5 {[%clk 0:00:03.7]}
62... Kf6 {[%clk 0:00:29]} 63. Nd7+ {[%clk 0:00:03.1]} 63... Ke7 {[%clk
0:00:29.2]} 64. Ne5 {[%clk 0:00:03.6]} 64... Kf6 {[%clk 0:00:29.8]} 65. Nc4
{[%clk 0:00:04.2]} 65... h5 {[%clk 0:00:28.7]} 66. c6 {[%clk 0:00:04.6]} 66...
Nd4+ {[%clk 0:00:28.7]} 67. Ke3 {[%clk 0:00:04.7]} 67... Nb5 {[%clk 0:00:25.8]}
68. d6 {[%clk 0:00:03.1]} 68... Ke6 {[%clk 0:00:25.2]} 69. c7 {[%clk 0:00:03.1]}
69... Na7 {[%clk 0:00:22.3]} 70. Kxe4 {[%clk 0:00:02.7]} 70... h4 {[%clk
0:00:22.6]} 71. Kf4 {[%clk 0:00:02.6]} 71... Kd7 {[%clk 0:00:22.8]} 72. Ke5
{[%clk 0:00:02.6]} 72... Nc8 {[%clk 0:00:23.1]} 73. Kf4 {[%clk 0:00:02.6]} 73...
Nxd6 {[%clk 0:00:23.6]} 74. Nxd6 {[%clk 0:00:03]} 74... Kxc7 {[%clk 0:00:24.2]}
75. Ne8+ {[%clk 0:00:03.3]} 75... Kd7 {[%clk 0:00:24.5]} 76. Nxg7 {[%clk
0:00:04.2]} 76... Ke7 {[%clk 0:00:25.3]} 77. Nf5+ {[%clk 0:00:04.4]} 77... Kf6
{[%clk 0:00:26.2]} 78. Nxh4 {[%clk 0:00:05.3]} 1/2-1/2

[Event "Late-Titled-Tuesday-Blitz-May-07-2024"]
[Site "Chess.com"]
[Date "2024.05.07"]
[Round "7"]
[White "MITerryble"]
[Black "stollenmonster"]
[Result "1-0"]
[WhiteElo "3029"]
[BlackElo "2869"]
[TimeControl "180+1"]
[EndTime "15:18:15 PDT"]
[Termination "MITerryble won by resignation"]

1. d4 {[%clk 0:03:00.9]} 1... Nf6 {[%clk 0:03:00.1]} 2. Bg5 {[%clk 0:03:00.2]}
2... e6 {[%clk 0:03:00.2]} 3. e4 {[%clk 0:03:00.2]} 3... Be7 {[%clk 0:03:00.7]}
4. e5 {[%clk 0:02:57.7]} 4... Nd5 {[%clk 0:03:01]} 5. Bd2 {[%clk 0:02:58.1]}
5... c5 {[%clk 0:03:00.5]} 6. c4 {[%clk 0:02:54.5]} 6... Nb6 {[%clk 0:03:01]} 7.
Qg4 {[%clk 0:02:54]} 7... Kf8 {[%clk 0:03:00.4]} 8. dxc5 {[%clk 0:02:50.3]} 8...
Bxc5 {[%clk 0:03:01.3]} 9. Nf3 {[%clk 0:02:41.4]} 9... Nc6 {[%clk 0:03:01.8]}
10. Nc3 {[%clk 0:02:36.4]} 10... d6 {[%clk 0:03:02]} 11. Ne4 {[%clk 0:02:33.7]}
11... Bb4 {[%clk 0:02:51.3]} 12. Rd1 {[%clk 0:02:04.4]} 12... Bxd2+ {[%clk
0:02:50.3]} 13. Rxd2 {[%clk 0:02:05.3]} 13... d5 {[%clk 0:02:50.1]} 14. Qf4
{[%clk 0:01:57.1]} 14... Qe7 {[%clk 0:02:43.7]} 15. Nd6 {[%clk 0:01:57.5]} 15...
f6 {[%clk 0:02:29.3]} 16. Be2 {[%clk 0:01:39]} 16... Kg8 {[%clk 0:02:22.3]} 17.
c5 {[%clk 0:01:32.1]} 17... Nd7 {[%clk 0:02:19.8]} 18. exf6 {[%clk 0:01:32]}
18... gxf6 {[%clk 0:02:19.4]} 19. b4 {[%clk 0:01:25.9]} 19... a5 {[%clk
0:02:18.9]} 20. a3 {[%clk 0:01:25.2]} 20... axb4 {[%clk 0:02:17.7]} 21. axb4
{[%clk 0:01:26.1]} 21... Nce5 {[%clk 0:02:05.6]} 22. O-O {[%clk 0:01:23.9]}
22... b6 {[%clk 0:02:01]} 23. Nxe5 {[%clk 0:01:08.2]} 23... Nxe5 {[%clk
0:02:00]} 24. Qg3+ {[%clk 0:00:41.7]} 24... Kf8 {[%clk 0:01:57.8]} 25. f4 {[%clk
0:00:42]} 25... Ng6 {[%clk 0:01:46.8]} 26. f5 {[%clk 0:00:38.8]} 26... exf5
{[%clk 0:01:46.6]} 27. Bf3 {[%clk 0:00:27.1]} 27... bxc5 {[%clk 0:01:44.6]} 28.
bxc5 {[%clk 0:00:27.1]} 28... Qe3+ {[%clk 0:01:38.3]} 29. Qf2 {[%clk 0:00:27.4]}
29... f4 {[%clk 0:01:34.1]} 30. Bxd5 {[%clk 0:00:25.1]} 30... Rb8 {[%clk
0:01:31]} 31. c6 {[%clk 0:00:20.5]} 31... Ba6 {[%clk 0:01:27.2]} 32. c7 {[%clk
0:00:17.3]} 32... Rb6 {[%clk 0:01:16.6]} 33. c8=Q+ {[%clk 0:00:16.8]} 33... Bxc8
{[%clk 0:01:16.9]} 34. Nxc8 {[%clk 0:00:17.7]} 34... Ra6 {[%clk 0:01:15.3]} 35.
Re2 {[%clk 0:00:06.7]} 35... Qc3 {[%clk 0:01:04.8]} 36. Rc2 {[%clk 0:00:06.7]}
36... Qe3 {[%clk 0:01:03.6]} 37. Bb7 {[%clk 0:00:06.1]} 37... Re6 {[%clk
0:01:02.9]} 38. Bd5 {[%clk 0:00:05.6]} 38... Ra6 {[%clk 0:01:02.6]} 39. Bf3
{[%clk 0:00:05.3]} 39... Kg7 {[%clk 0:01:01]} 40. Re1 {[%clk 0:00:04.3]} 40...
Qxf2+ {[%clk 0:00:52.8]} 41. Kxf2 {[%clk 0:00:05.2]} 41... Ne5 {[%clk 0:00:53]}
42. Rd1 {[%clk 0:00:05.6]} 42... Kg6 {[%clk 0:00:42.9]} 43. Nd6 {[%clk
0:00:05.3]} 43... Rd8 {[%clk 0:00:43]} 44. Ne4 {[%clk 0:00:05.1]} 44... Rxd1
{[%clk 0:00:40.4]} 45. Bxd1 {[%clk 0:00:06]} 45... Kf5 {[%clk 0:00:40]} 46. Bf3
{[%clk 0:00:05]} 46... Nd3+ {[%clk 0:00:37.8]} 47. Ke2 {[%clk 0:00:05.1]} 47...
Ne5 {[%clk 0:00:38.5]} 48. Nc5 {[%clk 0:00:05.3]} 48... Ra3 {[%clk 0:00:37.5]}
49. Rd2 {[%clk 0:00:04.8]} 49... Re3+ {[%clk 0:00:36.1]} 50. Kf2 {[%clk
0:00:04.3]} 50... Ra3 {[%clk 0:00:33.2]} 51. Ne4 {[%clk 0:00:04.5]} 51... Kg6
{[%clk 0:00:32.7]} 52. Nd6 {[%clk 0:00:04.8]} 52... f5 {[%clk 0:00:27.5]} 53.
Be2 {[%clk 0:00:04.9]} 53... Ng4+ {[%clk 0:00:26.4]} 54. Bxg4 {[%clk 0:00:05]}
54... fxg4 {[%clk 0:00:27.3]} 55. Nc4 {[%clk 0:00:05.4]} 55... Rc3 {[%clk
0:00:26]} 56. Ne5+ {[%clk 0:00:05.7]} 56... Kf5 {[%clk 0:00:26.4]} 57. Nd3
{[%clk 0:00:06.6]} 57... h5 {[%clk 0:00:17.2]} 58. Ke2 {[%clk 0:00:06]} 58... h4
{[%clk 0:00:15.5]} 59. Rb2 {[%clk 0:00:06.2]} 59... g3 {[%clk 0:00:14.1]} 60. h3
{[%clk 0:00:06.5]} 60... f3+ {[%clk 0:00:08.6]} 61. gxf3 {[%clk 0:00:07.4]}
61... g2 {[%clk 0:00:08.8]} 62. Rb1 {[%clk 0:00:06.8]} 62... Ra3 {[%clk
0:00:07.3]} 63. Rg1 {[%clk 0:00:06.7]} 63... Ra2+ {[%clk 0:00:07.7]} 64. Ke3
{[%clk 0:00:07.3]} 64... Rc2 {[%clk 0:00:07.4]} 65. Nb4 {[%clk 0:00:05.7]} 65...
Rc3+ {[%clk 0:00:05.4]} 66. Kf2 {[%clk 0:00:06]} 66... Kf4 {[%clk 0:00:03.3]}
67. Nd5+ {[%clk 0:00:06.2]} 1-0

[Event "Late-Titled-Tuesday-Blitz-May-07-2024"]
[Site "Chess.com"]
[Date "2024.05.07"]
[Round "7"]
[White "baki83"]
[Black "FelixBlohberger"]
[Result "1/2-1/2"]
[WhiteElo "2928"]
[BlackElo "2751"]
[TimeControl "180+1"]
[EndTime "15:18:15 PDT"]
[Termination "Game drawn by repetition"]

1. e4 {[%clk 0:03:00.9]} 1... e5 {[%clk 0:01:39.4]} 2. Nf3 {[%clk 0:02:59.3]}
2... Nc6 {[%clk 0:01:39.6]} 3. Bb5 {[%clk 0:02:59.2]} 3... Nf6 {[%clk
0:01:39.8]} 4. d3 {[%clk 0:02:58.9]} 4... Bc5 {[%clk 0:01:39]} 5. Bg5 {[%clk
0:02:58.7]} 5... h6 {[%clk 0:01:33.6]} 6. Bh4 {[%clk 0:02:59]} 6... Be7 {[%clk
0:01:24.3]} 7. Nbd2 {[%clk 0:02:48.8]} 7... d6 {[%clk 0:01:22.6]} 8. c3 {[%clk
0:02:46.5]} 8... O-O {[%clk 0:01:19.3]} 9. Bxc6 {[%clk 0:02:41.9]} 9... bxc6
{[%clk 0:01:19.2]} 10. Qc2 {[%clk 0:02:42.5]} 10... Nh5 {[%clk 0:01:18.2]} 11.
Bxe7 {[%clk 0:02:36.2]} 11... Qxe7 {[%clk 0:01:19.1]} 12. O-O-O {[%clk
0:02:32.3]} 12... c5 {[%clk 0:01:16.3]} 13. g3 {[%clk 0:02:30.3]} 13... Be6
{[%clk 0:01:13.3]} 14. Kb1 {[%clk 0:02:28.5]} 14... a5 {[%clk 0:01:13]} 15. d4
{[%clk 0:02:25.5]} 15... a4 {[%clk 0:00:43.2]} 16. dxe5 {[%clk 0:02:12.8]} 16...
dxe5 {[%clk 0:00:43.3]} 17. Nxe5 {[%clk 0:02:09.5]} 17... Bxa2+ {[%clk
0:00:40.1]} 18. Kxa2 {[%clk 0:02:10.4]} 18... Qxe5 {[%clk 0:00:40.4]} 19. Qd3
{[%clk 0:01:58]} 19... Nf6 {[%clk 0:00:36.5]} 20. Qc4 {[%clk 0:01:55.5]} 20...
Nd7 {[%clk 0:00:21.1]} 21. Qd5 {[%clk 0:01:44]} 21... Qe7 {[%clk 0:00:20.6]} 22.
Nc4 {[%clk 0:01:44.1]} 22... Nb6 {[%clk 0:00:19.7]} 23. Qe5 {[%clk 0:01:31.3]}
23... Rfe8 {[%clk 0:00:17.8]} 24. Qxe7 {[%clk 0:01:19.5]} 24... Rxe7 {[%clk
0:00:18.7]} 25. Nxb6 {[%clk 0:01:19.7]} 25... cxb6 {[%clk 0:00:19.6]} 26. f3
{[%clk 0:01:20]} 26... Re6 {[%clk 0:00:15.6]} 27. c4 {[%clk 0:01:14.9]} 27... g5
{[%clk 0:00:15.7]} 28. Rd3 {[%clk 0:01:13.2]} 28... g4 {[%clk 0:00:11.8]} 29.
Re1 {[%clk 0:01:12]} 29... Rae8 {[%clk 0:00:07.9]} 30. Ka3 {[%clk 0:01:01]}
30... gxf3 {[%clk 0:00:07.8]} 31. Kxa4 {[%clk 0:00:44.6]} 31... Rxe4 {[%clk
0:00:08.1]} 32. Rxe4 {[%clk 0:00:38.7]} 32... Rxe4 {[%clk 0:00:09]} 33. Kb5
{[%clk 0:00:38.7]} 33... f2 {[%clk 0:00:09]} 34. Rf3 {[%clk 0:00:38.8]} 34...
Re2 {[%clk 0:00:09.4]} 35. Kxb6 {[%clk 0:00:36]} 35... Rxb2+ {[%clk 0:00:08.1]}
36. Kxc5 {[%clk 0:00:36.6]} 36... Kg7 {[%clk 0:00:05.8]} 37. Kd6 {[%clk
0:00:22.3]} 37... Kg6 {[%clk 0:00:04.3]} 38. c5 {[%clk 0:00:21.9]} 38... Rd2+
{[%clk 0:00:04.7]} 39. Kc6 {[%clk 0:00:12.6]} 39... Rc2 {[%clk 0:00:05.1]} 40.
Kb6 {[%clk 0:00:11.7]} 40... Rb2+ {[%clk 0:00:05.5]} 41. Kc7 {[%clk 0:00:11.8]}
41... Rc2 {[%clk 0:00:06.1]} 42. c6 {[%clk 0:00:12]} 42... f5 {[%clk 0:00:05.6]}
43. Rf4 {[%clk 0:00:12.4]} 43... h5 {[%clk 0:00:04.8]} 44. Kb7 {[%clk
0:00:12.5]} 44... Rb2+ {[%clk 0:00:04.8]} 45. Kc8 {[%clk 0:00:12.8]} 45... Rc2
{[%clk 0:00:05]} 46. c7 {[%clk 0:00:13.4]} 46... Kf6 {[%clk 0:00:04.3]} 47. Kd7
{[%clk 0:00:12.7]} 47... Rd2+ {[%clk 0:00:04.4]} 48. Kc6 {[%clk 0:00:12.5]}
48... Rc2+ {[%clk 0:00:05]} 49. Kb6 {[%clk 0:00:12.9]} 49... Rb2+ {[%clk
0:00:05.4]} 50. Ka6 {[%clk 0:00:13.1]} 50... Ra2+ {[%clk 0:00:05.1]} 51. Kb7
{[%clk 0:00:12]} 51... Rb2+ {[%clk 0:00:05.4]} 52. Ka8 {[%clk 0:00:12.1]} 52...
Ra2+ {[%clk 0:00:05.7]} 53. Kb8 {[%clk 0:00:12.6]} 53... Rb2+ {[%clk 0:00:06.3]}
54. Kc8 {[%clk 0:00:13]} 54... Rc2 {[%clk 0:00:06.9]} 55. Rf3 {[%clk 0:00:13.1]}
55... Kg6 {[%clk 0:00:05.4]} 56. h3 {[%clk 0:00:12.9]} 56... Kg5 {[%clk
0:00:04.8]} 57. Rf4 {[%clk 0:00:12.7]} 57... Kg6 {[%clk 0:00:04.7]} 58. Kd7
{[%clk 0:00:12.2]} 58... Rd2+ {[%clk 0:00:04.6]} 59. Kc8 {[%clk 0:00:12.1]}
59... Rc2 {[%clk 0:00:04.8]} 60. h4 {[%clk 0:00:11.4]} 60... Kf6 {[%clk
0:00:04.4]} 61. Kd7 {[%clk 0:00:11.5]} 61... Rd2+ {[%clk 0:00:04.9]} 62. Kc8
{[%clk 0:00:11.6]} 62... Rc2 {[%clk 0:00:05.6]} 63. Rf3 {[%clk 0:00:12]} 63...
Kg6 {[%clk 0:00:05.2]} 64. Kd7 {[%clk 0:00:11.1]} 64... Rd2+ {[%clk 0:00:05.7]}
65. Ke7 {[%clk 0:00:11.2]} 65... Rc2 {[%clk 0:00:05.7]} 66. Kd6 {[%clk
0:00:11.6]} 66... Rd2+ {[%clk 0:00:06]} 67. Ke5 {[%clk 0:00:11.6]} 67... Re2+
{[%clk 0:00:04.3]} 68. Kd6 {[%clk 0:00:06.8]} 68... Rd2+ {[%clk 0:00:04.7]} 69.
Kc6 {[%clk 0:00:06.7]} 69... Rc2+ {[%clk 0:00:05]} 70. Kb7 {[%clk 0:00:07.3]}
70... Rb2+ {[%clk 0:00:05.5]} 71. Ka8 {[%clk 0:00:07.7]} 71... Ra2+ {[%clk
0:00:05.7]} 72. Kb8 {[%clk 0:00:08.3]} 72... Rb2+ {[%clk 0:00:06.3]} 73. Kc8
{[%clk 0:00:08.7]} 73... Rc2 {[%clk 0:00:06.8]} 74. Kd8 {[%clk 0:00:09.3]} 74...
Rd2+ {[%clk 0:00:07.1]} 75. Kc8 {[%clk 0:00:09.6]} 75... Rc2 {[%clk 0:00:07.5]}
1/2-1/2

[Event "Late-Titled-Tuesday-Blitz-May-07-2024"]
[Site "Chess.com"]
[Date "2024.05.07"]
[Round "7"]
[White "Sinquefield"]
[Black "lamomiajunior"]
[Result "1/2-1/2"]
[WhiteElo "2550"]
[BlackElo "2761"]
[TimeControl "180+1"]
[EndTime "15:18:32 PDT"]
[Termination "Game drawn - insufficient material"]

1. d4 {[%clk 0:02:56.3]} 1... Nf6 {[%clk 0:02:59.8]} 2. Nf3 {[%clk 0:02:55.9]}
2... g6 {[%clk 0:02:59.6]} 3. Bg5 {[%clk 0:02:55.7]} 3... Bg7 {[%clk 0:02:58.5]}
4. Nbd2 {[%clk 0:02:56.3]} 4... c5 {[%clk 0:02:54.4]} 5. e3 {[%clk 0:02:56.6]}
5... O-O {[%clk 0:02:53.8]} 6. Be2 {[%clk 0:02:56.3]} 6... b6 {[%clk 0:02:54.3]}
7. O-O {[%clk 0:02:56.5]} 7... Bb7 {[%clk 0:02:54.8]} 8. c3 {[%clk 0:02:57.2]}
8... d6 {[%clk 0:02:55.1]} 9. a4 {[%clk 0:02:55.9]} 9... a6 {[%clk 0:02:55.5]}
10. b4 {[%clk 0:02:56.3]} 10... cxb4 {[%clk 0:02:52.9]} 11. cxb4 {[%clk
0:02:55.9]} 11... h6 {[%clk 0:02:52.6]} 12. Bh4 {[%clk 0:02:55.8]} 12... Nbd7
{[%clk 0:02:53.1]} 13. Rc1 {[%clk 0:02:55.6]} 13... g5 {[%clk 0:02:47.7]} 14.
Bg3 {[%clk 0:02:55.9]} 14... Nd5 {[%clk 0:02:47.9]} 15. Qb3 {[%clk 0:02:53.7]}
15... N7f6 {[%clk 0:02:44.3]} 16. h3 {[%clk 0:02:51.1]} 16... Qd7 {[%clk
0:02:40.5]} 17. Rc2 {[%clk 0:02:43.6]} 17... Rfc8 {[%clk 0:02:38.3]} 18. Rfc1
{[%clk 0:02:44.1]} 18... Rxc2 {[%clk 0:02:38.4]} 19. Rxc2 {[%clk 0:02:45]} 19...
Rc8 {[%clk 0:02:37.8]} 20. Rxc8+ {[%clk 0:02:40.7]} 20... Qxc8 {[%clk
0:02:38.7]} 21. Bc4 {[%clk 0:02:38.2]} 21... Qc7 {[%clk 0:02:27.1]} 22. e4
{[%clk 0:02:35.4]} 22... Nf4 {[%clk 0:02:24.8]} 23. Bxf4 {[%clk 0:02:31.9]}
23... gxf4 {[%clk 0:02:24.7]} 24. Bxf7+ {[%clk 0:02:32.2]} 24... Kh8 {[%clk
0:02:23.4]} 25. Qe6 {[%clk 0:02:19.7]} 25... Bc8 {[%clk 0:02:14.8]} 26. Qc4
{[%clk 0:02:19.7]} 26... Qd8 {[%clk 0:01:58.7]} 27. e5 {[%clk 0:02:12.1]} 27...
dxe5 {[%clk 0:01:49.4]} 28. dxe5 {[%clk 0:02:10.7]} 28... Nd7 {[%clk 0:01:46.7]}
29. Qxf4 {[%clk 0:02:10]} 29... Nf8 {[%clk 0:01:47.1]} 30. Bb3 {[%clk
0:01:48.5]} 30... Qd3 {[%clk 0:01:45.5]} 31. Qe3 {[%clk 0:01:44]} 31... Qd8
{[%clk 0:01:33]} 32. Qf4 {[%clk 0:01:43.4]} 32... Qd3 {[%clk 0:01:32.2]} 33. Qc4
{[%clk 0:01:43.1]} 33... Qxc4 {[%clk 0:01:28.8]} 34. Nxc4 {[%clk 0:01:43.4]}
34... b5 {[%clk 0:01:25.8]} 35. axb5 {[%clk 0:01:26.2]} 35... axb5 {[%clk
0:01:26.7]} 36. Nb6 {[%clk 0:01:26.7]} 36... Bb7 {[%clk 0:01:25.6]} 37. Bd5
{[%clk 0:01:26.3]} 37... Ba6 {[%clk 0:01:20.9]} 38. Bf7 {[%clk 0:01:18.3]} 38...
Bb7 {[%clk 0:01:17.1]} 39. Be8 {[%clk 0:01:08.4]} 39... Bxf3 {[%clk 0:01:14.8]}
40. gxf3 {[%clk 0:01:09.3]} 40... Bxe5 {[%clk 0:01:15.7]} 41. Bxb5 {[%clk
0:01:09.2]} 41... Bd6 {[%clk 0:01:15.8]} 42. Nd5 {[%clk 0:01:04.9]} 42... e6
{[%clk 0:01:16.3]} 43. Nc3 {[%clk 0:01:01.4]} 43... Bxb4 {[%clk 0:01:16.7]} 44.
Ne4 {[%clk 0:01:01.7]} 44... Be7 {[%clk 0:01:17.5]} 45. Bc4 {[%clk 0:01:00.7]}
45... Kg7 {[%clk 0:01:17.1]} 46. Kg2 {[%clk 0:01:01.4]} 46... Ng6 {[%clk
0:01:16.6]} 47. Kf1 {[%clk 0:00:52.5]} 47... Nf4 {[%clk 0:01:16.5]} 48. Ng3
{[%clk 0:00:42.9]} 48... Kf7 {[%clk 0:01:13.4]} 49. Nf5 {[%clk 0:00:37.5]} 49...
Bf8 {[%clk 0:01:10.2]} 50. h4 {[%clk 0:00:34.8]} 50... Kf6 {[%clk 0:01:08.6]}
51. Ne3 {[%clk 0:00:35]} 51... h5 {[%clk 0:01:08]} 52. Ng2 {[%clk 0:00:33.3]}
52... Ng6 {[%clk 0:01:06.3]} 53. Ke2 {[%clk 0:00:32.8]} 53... Bc5 {[%clk
0:01:06.4]} 54. f4 {[%clk 0:00:31.9]} 54... Ne7 {[%clk 0:01:00.9]} 55. Kf3
{[%clk 0:00:26.1]} 55... Nf5 {[%clk 0:01:00.8]} 56. Bd3 {[%clk 0:00:26.3]} 56...
Nd4+ {[%clk 0:00:59.7]} 57. Kg3 {[%clk 0:00:26.4]} 57... Bd6 {[%clk 0:00:53.4]}
58. Ne3 {[%clk 0:00:23.2]} 58... Bc7 {[%clk 0:00:52.3]} 59. Bc2 {[%clk
0:00:19.4]} 59... Ne2+ {[%clk 0:00:46.1]} 60. Kf3 {[%clk 0:00:19.7]} 60... Nxf4
{[%clk 0:00:47]} 61. Bd1 {[%clk 0:00:18.2]} 61... Ng6 {[%clk 0:00:47.1]} 62. Ng2
{[%clk 0:00:17.7]} 62... Ne5+ {[%clk 0:00:45.2]} 63. Ke4 {[%clk 0:00:15.2]}
63... Bb6 {[%clk 0:00:41.1]} 64. f4 {[%clk 0:00:12.4]} 64... Ng4 {[%clk
0:00:35]} 65. Bxg4 {[%clk 0:00:06.6]} 65... hxg4 {[%clk 0:00:35.9]} 66. h5
{[%clk 0:00:07]} 66... Kg7 {[%clk 0:00:26.3]} 67. Ke5 {[%clk 0:00:05.9]} 67...
Kh6 {[%clk 0:00:26.9]} 68. Kxe6 {[%clk 0:00:05.6]} 68... Kxh5 {[%clk 0:00:27.6]}
69. f5 {[%clk 0:00:06.2]} 69... g3 {[%clk 0:00:28.2]} 70. f6 {[%clk 0:00:04.9]}
70... Kg4 {[%clk 0:00:28.6]} 71. f7 {[%clk 0:00:05.1]} 71... Bc5 {[%clk
0:00:29]} 72. Kd7 {[%clk 0:00:05.3]} 72... Kf3 {[%clk 0:00:29.1]} 73. Nh4+
{[%clk 0:00:05.9]} 73... Kg4 {[%clk 0:00:28.8]} 74. Ng2 {[%clk 0:00:06.1]} 74...
Kf3 {[%clk 0:00:28.1]} 75. Nh4+ {[%clk 0:00:06.1]} 75... Kf2 {[%clk 0:00:25.9]}
76. Ke8 {[%clk 0:00:06]} 76... Kg1 {[%clk 0:00:19.5]} 77. f8=Q {[%clk 0:00:04]}
77... Bxf8 {[%clk 0:00:20]} 78. Kxf8 {[%clk 0:00:04.9]} 78... Kh2 {[%clk
0:00:20.6]} 79. Kg7 {[%clk 0:00:05.3]} 79... Kh3 {[%clk 0:00:20.9]} 80. Nf3
{[%clk 0:00:05.6]} 80... Kg4 {[%clk 0:00:21.4]} 81. Ng1 {[%clk 0:00:05.7]} 81...
g2 {[%clk 0:00:21.9]} 82. Kg6 {[%clk 0:00:05.8]} 82... Kg3 {[%clk 0:00:22.6]}
83. Kg5 {[%clk 0:00:05.8]} 83... Kf2 {[%clk 0:00:22.8]} 84. Nh3+ {[%clk
0:00:06.3]} 84... Kf3 {[%clk 0:00:23.4]} 85. Kh4 {[%clk 0:00:05.9]} 85... g1=Q
{[%clk 0:00:22.2]} 86. Nxg1+ {[%clk 0:00:05.8]} 1/2-1/2